bitfinex-derivatives/quotes_BNBF0:USTF0_20250116
["timestamp","ask_amount","ask_price","bid_price","bid_amount"]
[1737049601291,0.27940765,715.8,714.89,0.46426484]
[1737049601489,0.27940765,715.8,714.9,0.46426484]
[1737049601690,0.27940765,715.8,714.91,0.46426484]
[1737049601992,0.27940765,715.8,714.92,0.46426484]
[1737049602185,0.27940765,715.8,714.93,0.46426484]
[1737049602388,0.27940765,715.8,714.94,0.46426484]
[1737049602589,0.27940765,715.8,714.95,0.46426484]
[1737049602895,0.27940765,715.8,714.96,0.46426484]
[1737049603190,0.27940765,715.8,714.97,0.46426484]
[1737049603390,0.27940765,715.8,714.98,0.46426484]
[1737049603585,0.27940765,715.8,714.99,0.46426484]
[1737049603792,0.27940765,715.8,715.0,0.46426484]
[1737049603989,0.27940765,715.8,715.01,0.46426484]
[1737049604186,0.27940765,715.8,714.32,1.03252044]
[1737049604391,0.27940765,715.8,714.33,0.72125052]
[1737049604586,0.27940765,715.8,714.34,0.72125052]
[1737049604790,0.27940765,715.8,714.35,1.00122532]
[1737049604994,1.32116752,715.8,714.36,1.75377096]
[1737049605195,1.32116752,715.8,714.37,0.72125052]
[1737049605394,1.32116752,715.8,714.38,0.72125052]
[1737049605693,1.32116752,715.8,714.39,0.72125052]
[1737049605896,1.04175987,715.74,714.48,1.03252044]
[1737049606092,1.04175987,715.74,714.49,0.72124464]
[1737049606292,1.04175987,715.74,714.5,0.72124464]
[1737049606594,1.04175987,715.74,714.51,0.72124464]
[1737049606795,1.04175987,715.74,714.52,0.72124464]
[1737049606990,1.04175987,715.74,714.53,0.72124464]
[1737049607198,1.04175987,715.7,714.54,0.4642401]
[1737049607394,1.04175987,715.7,714.5,1.03252044]
[1737049607395,1.04175987,715.7,714.55,0.4642401]
[1737049607588,1.04175987,715.7,714.56,0.4642401]
[1737049607793,1.04175987,715.7,714.57,0.4642401]
[1737049608100,0.27940765,715.8,714.58,0.4642401]
[1737049608391,0.27940765,715.8,714.59,0.4642401]
[1737049608596,0.27940765,715.8,714.6,0.4642401]
[1737049608795,0.27940765,715.8,714.61,0.4642401]
[1737049608998,0.27940765,715.8,714.62,0.4642401]
[1737049609197,0.27940765,715.8,714.63,0.4642401]
[1737049609394,0.27940765,715.8,714.64,0.4642401]
[1737049609591,0.27940765,715.8,714.65,0.4642401]
[1737049609795,0.27940765,715.8,714.66,0.4642401]
[1737049609996,0.27940765,715.8,714.67,0.4642401]
[1737049610192,0.27940765,715.8,714.68,0.4650939]
[1737049610193,1.32116752,715.8,714.68,0.4650939]
[1737049610396,1.32116752,715.8,714.69,0.4650939]
[1737049610593,1.32116752,715.8,714.7,0.4650939]
[1737049610795,1.32116752,715.8,714.71,0.4650939]
[1737049610997,1.32116752,715.8,714.72,0.4650939]
[1737049611196,1.32116752,715.8,714.73,0.4650939]
[1737049611391,1.32116752,715.8,714.74,0.4650939]
[1737049611592,1.32116752,715.8,714.75,0.4650939]
[1737049611792,1.32116752,715.8,714.76,0.4650939]
[1737049611998,1.32116752,715.8,714.77,0.4650939]
[1737049612190,1.32116752,715.8,714.35,0.2799748]
[1737049612191,1.32116752,715.8,714.78,0.4650939]
[1737049612395,1.04175987,715.78,714.79,0.4650939]
[1737049612598,1.04175987,715.78,714.8,0.4650939]
[1737049612796,1.04175987,715.78,714.81,0.4650939]
[1737049612997,1.04175987,715.78,714.82,0.4650939]
[1737049613301,0.27941936,715.77,714.83,0.4650939]
[1737049613499,1.04175987,715.54,714.84,0.4650939]
[1737049613798,1.04175987,715.54,714.85,0.4650939]
[1737049613997,1.04175987,715.54,714.86,0.4650939]
[1737049614192,1.04175987,715.54,714.87,0.4650939]
[1737049614393,1.04175987,715.56,714.88,0.4650939]
[1737049614596,1.04175987,715.56,714.89,0.4650939]
[1737049614797,1.04175987,715.56,714.9,0.4650939]
[1737049614997,1.04175987,715.56,714.91,0.4650939]
[1737049615496,1.04175987,715.56,714.92,0.4650939]
[1737049615700,1.04175987,715.56,714.93,0.4650939]
[1737049615901,1.04175987,715.56,714.94,0.4650939]
[1737049616102,1.04175987,715.56,714.95,0.4650939]
[1737049616302,1.04175987,715.66,714.96,0.4650939]
[1737049616602,1.04175987,715.66,714.97,0.4650939]
[1737049616796,1.04175987,715.66,714.98,0.4650939]
[1737049617101,1.04175987,715.66,714.99,0.4650939]
[1737049617301,1.04175987,715.66,715.0,0.46496662]
[1737049617500,1.04175987,715.66,715.01,0.46496662]
[1737049617697,1.04175987,715.72,715.02,0.46496662]
[1737049617903,1.04175987,715.72,715.03,0.46496662]
[1737049618103,1.04175987,715.72,715.04,0.46496662]
[1737049618303,1.04175987,715.72,715.05,0.46496662]
[1737049618497,1.04175987,715.72,714.59,1.03252044]
[1737049618498,1.04175987,715.72,715.06,0.46496662]
[1737049618701,1.04175987,715.72,715.07,0.46496662]
[1737049618902,1.04175987,715.72,715.08,0.46496662]
[1737049619098,1.04175987,715.72,715.09,0.46496662]
[1737049619298,1.04175987,715.72,715.1,0.46496662]
[1737049619501,1.04175987,715.72,715.11,0.46496662]
[1737049619700,1.04175987,715.72,715.12,0.46510195]
[1737049619903,1.04175987,715.72,715.13,0.46510195]
[1737049620206,1.04175987,715.72,715.14,0.46510195]
[1737049620406,1.04175987,715.72,715.15,0.46510195]
[1737049620607,1.04175987,715.72,715.16,0.46510195]
[1737049620808,1.04175987,715.75,715.17,0.46510195]
[1737049621008,1.04175987,715.75,715.18,0.46505989]
[1737049621208,1.04175987,715.75,715.19,0.46505989]
[1737049621402,1.04175987,715.75,715.2,0.46505989]
[1737049621607,1.04175987,715.75,715.21,0.46505989]
[1737049621807,1.04175987,715.75,715.22,0.46505989]
[1737049622004,0.27941936,715.77,715.23,0.46505989]
[1737049622207,0.27941936,715.77,714.65,1.03252044]
[1737049622402,0.27941936,715.77,714.66,0.46507781]
[1737049622607,0.27941936,715.77,714.67,0.72203718]
[1737049622806,0.27941936,715.77,714.68,0.72203718]
[1737049623009,0.27941936,715.77,714.69,0.72203718]
[1737049623209,0.27941936,715.77,714.7,0.72203718]
[1737049623409,0.27941936,715.77,714.71,0.72203718]
[1737049623610,0.27941936,715.77,714.72,0.72203718]
[1737049623810,0.27941936,715.77,714.65,1.03252044]
[1737049623811,0.27941936,715.77,714.73,0.72203718]
[1737049624010,0.27941936,715.77,714.74,0.72203718]
[1737049624211,0.27941936,715.77,714.75,0.46507781]
[1737049624406,0.27941936,715.77,714.76,0.46507781]
[1737049624613,0.27941936,715.77,714.77,0.46505739]
[1737049624812,0.27941936,715.77,714.16,1.23902452]
[1737049624813,0.27941936,715.77,714.78,0.46505739]
[1737049625009,0.27941936,715.77,714.79,0.46505739]
[1737049625209,0.27941936,715.77,714.8,0.46505739]
[1737049625411,0.27941936,715.77,714.81,0.46505739]
[1737049625607,0.27941936,715.77,714.82,0.46505739]
[1737049625805,0.27941936,715.77,714.83,0.46505739]
[1737049626010,0.27941936,715.77,714.84,0.46505739]
[1737049626212,0.27941936,715.77,714.85,0.46505739]
[1737049626407,0.27941936,715.77,714.86,0.46505739]
[1737049626610,0.27941936,715.77,714.87,0.46505739]
[1737049626806,0.27941936,715.77,714.88,0.46505739]
[1737049627011,0.27941936,715.77,714.89,0.46505739]
[1737049627206,0.27941936,715.77,714.9,0.46505739]
[1737049627409,0.27941936,715.77,714.91,0.46505739]
[1737049627708,0.27941936,715.77,714.92,0.46505739]
[1737049627909,0.27941936,715.77,714.93,0.46505739]
[1737049628109,0.27941936,715.77,714.94,0.46505739]
[1737049628311,0.27941936,715.77,714.95,0.46505739]
[1737049628511,0.27941936,715.77,714.96,0.46505739]
[1737049628813,0.27941936,715.77,714.97,0.46505739]
[1737049629006,0.27941936,715.77,714.98,0.46505739]
[1737049629208,0.27941936,715.77,714.59,1.03252044]
[1737049629209,1.32117923,715.77,714.99,0.46505739]
[1737049629409,1.32117923,715.77,715.0,0.46505739]
[1737049629609,1.32117923,715.77,715.01,0.46505739]
[1737049629810,1.32117923,715.77,715.02,0.46505739]
[1737049630009,1.32117923,715.77,715.03,0.46505739]
[1737049630209,1.32117923,715.77,714.59,1.03252044]
[1737049630412,1.04175987,715.7,714.6,0.46615539]
[1737049630607,1.04175987,715.7,714.61,0.46615539]
[1737049630805,1.04175987,715.7,714.62,0.46615539]
[1737049631004,1.04175987,715.7,714.63,0.46615539]
[1737049631207,1.04175987,715.7,714.64,0.46615539]
[1737049631413,1.04175987,715.7,714.65,0.46615539]
[1737049631613,1.04175987,715.71,714.66,0.46615539]
[1737049631916,1.04175987,715.71,714.67,0.46615539]
[1737049632106,1.04175987,715.71,714.68,0.46615539]
[1737049632310,1.04175987,715.71,714.69,0.46615539]
[1737049632510,1.04175987,715.71,714.7,0.46615539]
[1737049632707,1.04175987,715.71,714.71,0.46615539]
[1737049632909,0.27941936,715.77,714.72,0.46615539]
[1737049632910,1.04175987,715.7,714.72,0.46615539]
[1737049633112,1.04175987,715.7,714.73,0.46615539]
[1737049633315,0.2794506,715.69,714.74,0.46615539]
[1737049633510,0.2794506,715.69,714.75,0.46615539]
[1737049633712,0.2794506,715.69,714.76,0.46615539]
[1737049633913,0.2794506,715.69,714.77,0.46615539]
[1737049634114,0.2794506,715.69,714.78,0.46665153]
[1737049634312,0.2794506,715.69,714.79,0.46665153]
[1737049634517,0.2794506,715.69,714.8,0.46665153]
[1737049634812,0.2794506,715.69,714.81,0.46665153]
[1737049635110,0.2794506,715.69,713.6,1.23902452]
[1737049635111,0.2794506,715.69,714.82,0.46665153]
[1737049635317,0.2794506,715.69,714.83,0.46665153]
[1737049635616,0.2794506,715.69,714.84,0.46665153]
[1737049635816,0.2794506,715.69,714.85,0.46665153]
[1737049636018,0.2794506,715.69,713.57,1.23902452]
[1737049636019,0.2794506,715.69,714.86,0.46665153]
[1737049636216,0.2794506,715.69,714.87,0.46665153]
[1737049636416,0.2794506,715.69,714.88,0.46665153]
[1737049636613,0.2794506,715.69,714.89,0.46665153]
[1737049636814,0.2794506,715.69,714.9,0.46665153]
[1737049637016,0.2794506,715.69,714.07,1.03252044]
[1737049637216,0.2794506,715.69,714.36,0.46665808]
[1737049637411,0.2794506,715.69,714.37,0.46665808]
[1737049637616,0.2794506,715.69,714.38,0.46665808]
[1737049637919,0.2794506,715.69,714.39,0.46665808]
[1737049638216,0.2794506,715.69,714.4,0.46665808]
[1737049638419,1.04175987,715.55,714.41,0.46665808]
[1737049638616,1.04175987,715.55,714.42,0.46665808]
[1737049638816,1.04175987,715.55,714.43,0.46665808]
[1737049639115,1.04175987,715.55,714.44,0.46665808]
[1737049639419,1.04175987,715.55,714.45,0.46665808]
[1737049639619,0.2794506,715.69,714.46,0.46665808]
[1737049639620,1.04175987,715.57,714.46,0.46665808]
[1737049639815,1.04175987,715.57,714.47,0.46665808]
[1737049640013,1.04175987,715.57,714.48,0.46665808]
[1737049640218,1.04175987,715.57,714.49,0.46665808]
[1737049640520,0.27950136,715.56,714.5,0.46665808]
[1737049640819,0.27950136,715.56,714.51,0.46665808]
[1737049641020,0.27950136,715.56,714.52,0.46665808]
[1737049641318,0.27950136,715.56,714.53,0.46665808]
[1737049641615,0.27950136,715.56,714.54,0.46665808]
[1737049641819,0.27950136,715.56,714.55,0.46665808]
[1737049642018,0.27950136,715.56,714.56,0.46665808]
[1737049642214,0.27950136,715.56,714.57,0.46665808]
[1737049642419,0.27950136,715.56,714.58,0.46665808]
[1737049642720,0.27950136,715.56,714.59,0.46665808]
[1737049642721,1.04175987,715.53,714.59,0.46665808]
[1737049642919,0.27951699,715.52,714.6,0.46665808]
[1737049643120,0.27951699,715.52,714.61,0.46665808]
[1737049643319,0.27951699,715.52,714.62,0.46665808]
[1737049643518,0.27951699,715.52,714.63,0.46665808]
[1737049643721,0.27951699,715.52,714.64,0.46665808]
[1737049643921,0.27951699,715.52,714.65,0.46665808]
[1737049644120,0.27951699,715.52,714.66,0.46665808]
[1737049644317,0.27951699,715.52,714.67,0.46665808]
[1737049644518,0.27951699,715.52,714.68,0.46665808]
[1737049644717,0.27951699,715.52,714.69,0.46665808]
[1737049644921,0.27951699,715.52,714.7,0.46665808]
[1737049645222,0.27951699,715.52,713.55,1.23902452]
[1737049645223,0.27951699,715.52,714.71,0.46665808]
[1737049645414,0.27951699,715.52,713.96,1.03252044]
[1737049645415,0.27951699,715.52,714.72,0.46665808]
[1737049645619,0.27951699,715.52,714.73,0.46665808]
[1737049645819,0.27951699,715.52,713.96,1.03252044]
[1737049646017,0.27951699,715.52,714.36,0.46602579]
[1737049646221,0.27951699,715.52,714.37,0.46602579]
[1737049646421,0.27951699,715.52,714.38,0.46602579]
[1737049646618,0.27951699,715.52,714.39,0.46602579]
[1737049646822,0.27951699,715.52,714.4,0.46602579]
[1737049647018,0.27951699,715.52,714.41,0.46602579]
[1737049647220,0.27951699,715.52,714.42,0.46602579]
[1737049647418,0.27951699,715.52,714.43,0.46602579]
[1737049647717,0.27951699,715.52,714.44,0.46602579]
[1737049647918,0.27951699,715.52,714.45,0.46602579]
[1737049648124,0.27951699,715.52,714.46,0.46602579]
[1737049648428,0.27951699,715.52,712.85,1.23902452]
[1737049648429,0.27951699,715.52,714.47,0.46602579]
[1737049648618,0.27951699,715.52,714.48,0.46602579]
[1737049648822,0.27951699,715.52,714.49,0.46602579]
[1737049649023,0.27951699,715.52,714.5,0.46602579]
[1737049649328,0.27951699,715.52,714.51,0.4658192]
[1737049649626,0.27951699,715.52,714.52,0.4658192]
[1737049649819,0.27951699,715.52,713.57,3.17055564]
[1737049649820,0.27951699,715.52,714.53,0.4658192]
[1737049650021,0.27951699,715.52,714.54,0.4658192]
[1737049650220,0.27951699,715.52,714.55,0.4658192]
[1737049650423,0.27951699,715.52,714.56,0.4658192]
[1737049650624,0.27951699,715.52,714.57,0.4658192]
[1737049650824,0.27951699,715.52,714.58,0.4658192]
[1737049651025,0.27951699,715.52,714.59,0.4658192]
[1737049651221,0.27951699,715.52,714.6,0.4658192]
[1737049651524,0.27951699,715.52,714.61,0.4658192]
[1737049651721,0.27951699,715.52,713.96,1.03252044]
[1737049651722,0.27951699,715.52,714.62,0.4658192]
[1737049651922,0.27951699,715.52,714.63,0.4658192]
[1737049652125,0.27951699,715.52,714.64,0.4658192]
[1737049652321,0.27951699,715.52,714.65,0.4658192]
[1737049652521,0.27951699,715.52,714.66,0.4658192]
[1737049652726,0.27951699,715.52,713.49,1.23902452]
[1737049652727,0.27951699,715.52,714.67,0.4658192]
[1737049652926,0.27951699,715.52,714.68,0.4658192]
[1737049653127,0.27951699,715.52,714.69,0.4658192]
[1737049653326,0.27951699,715.52,714.7,0.4658192]
[1737049653628,0.27951699,715.52,714.71,0.4658192]
[1737049653830,0.27951699,715.52,714.72,0.4658192]
[1737049654126,0.27951699,715.52,714.73,0.4658192]
[1737049654329,0.27951699,715.52,714.74,0.4658192]
[1737049654628,0.27951699,715.52,714.75,0.4658192]
[1737049654828,0.27951699,715.52,714.76,0.4658192]
[1737049655026,0.27951699,715.52,714.77,0.4658192]
[1737049655223,0.27951699,715.52,714.78,0.4658192]
[1737049655428,0.27951699,715.52,714.79,0.4658192]
[1737049655629,0.27951699,715.52,713.81,1.03252044]
[1737049655630,0.27951699,715.52,714.8,0.4658192]
[1737049655829,0.27951699,715.52,714.81,0.4658192]
[1737049656029,0.27951699,715.52,714.82,0.4658192]
[1737049656234,0.27951699,715.52,714.83,0.4658192]
[1737049656436,0.27951699,715.52,713.86,1.03252044]
[1737049656627,0.27951699,715.52,713.88,0.28015913]
[1737049656833,0.27951699,715.52,713.89,0.72266198]
[1737049657032,0.27951699,715.52,713.91,0.28014735]
[1737049657230,0.27951699,715.52,713.92,0.72266198]
[1737049657428,0.27951699,715.52,713.93,0.72266198]
[1737049657632,0.27951699,715.52,713.91,0.28014735]
[1737049657633,0.27951699,715.52,713.94,0.72266198]
[1737049657828,0.27951699,715.52,713.95,0.72266198]
[1737049658032,0.27951699,715.52,713.96,0.72266198]
[1737049658229,0.27951699,715.52,713.97,0.72266198]
[1737049658429,0.27951699,715.52,713.98,0.72266198]
[1737049658630,0.27951699,715.52,713.99,0.72266198]
[1737049658829,0.27951699,715.52,714.0,0.72266198]
[1737049659030,0.27951699,715.52,714.01,0.72266198]
[1737049659234,0.27951699,715.52,714.02,1.32029843]
[1737049659434,0.27951699,715.52,714.03,1.32029843]
[1737049659634,0.27951699,715.52,714.04,1.32029843]
[1737049659938,0.27951699,715.52,714.05,1.32029843]
[1737049660238,0.27951699,715.52,714.06,0.72268368]
[1737049660437,0.27951699,715.52,714.07,0.72281939]
[1737049660633,0.27951699,715.52,714.08,0.72281939]
[1737049660837,0.27951699,715.52,714.09,0.72281939]
[1737049661033,0.27951699,715.52,714.1,0.46571124]
[1737049661236,0.27951699,715.52,714.06,1.03252044]
[1737049661237,0.27951699,715.52,714.11,0.46571124]
[1737049661439,0.27951699,715.52,714.12,0.46571124]
[1737049661639,0.27951699,715.52,714.13,0.46571124]
[1737049661940,0.27951699,715.52,714.14,0.46571124]
[1737049662138,0.27951699,715.52,714.15,0.46571124]
[1737049662339,0.27951699,715.52,714.16,0.46595906]
[1737049662538,0.27951699,715.52,714.17,0.46595906]
[1737049662735,0.27951699,715.52,714.18,0.46595906]
[1737049662931,0.27951699,715.52,714.19,0.46595906]
[1737049663143,1.04175987,715.5,714.2,0.46595906]
[1737049663439,0.27953262,715.48,714.21,0.46595906]
[1737049663636,0.27953262,715.48,714.22,0.46595906]
[1737049663833,0.27953262,715.48,714.23,0.46595906]
[1737049664036,0.27953262,715.48,714.24,0.46595906]
[1737049664235,0.27953262,715.48,714.25,0.46595906]
[1737049664236,1.04175987,715.25,714.25,0.46595906]
[1737049664540,0.27962641,715.24,714.26,0.46595906]
[1737049664841,0.27962641,715.24,714.27,0.46595906]
[1737049665038,0.27962641,715.24,714.28,0.46595906]
[1737049665239,0.27962641,715.24,714.29,0.46595906]
[1737049665433,0.27962641,715.24,714.3,0.46595906]
[1737049665632,0.27962641,715.24,714.31,0.46595906]
[1737049665833,0.27962641,715.24,714.32,0.46595906]
[1737049666039,0.27962641,715.24,714.33,0.46595906]
[1737049666238,0.27962641,715.24,714.34,0.46595906]
[1737049666440,0.27962641,715.24,714.35,0.46595906]
[1737049666635,0.27962641,715.24,714.36,0.46595906]
[1737049666838,0.27962641,715.24,714.37,0.46595906]
[1737049667034,0.27962641,715.24,714.38,0.46595906]
[1737049667235,0.27962641,715.24,714.39,0.46595906]
[1737049667441,0.27962641,715.24,714.4,0.46595906]
[1737049667743,0.27962641,715.24,713.91,0.28014735]
[1737049667744,0.27962641,715.24,714.41,0.46595906]
[1737049668043,0.27962641,715.24,714.42,0.46595906]
[1737049668236,0.27962641,715.24,714.43,0.46595906]
[1737049668435,0.27962641,715.24,714.44,0.46595906]
[1737049668636,0.27962641,715.24,714.45,0.46595906]
[1737049668838,0.27962641,715.24,714.46,0.46595906]
[1737049669037,0.27962641,715.24,714.47,0.46595906]
[1737049669242,0.27962641,715.24,714.48,0.46595906]
[1737049669443,0.27962641,715.24,714.49,0.46530922]
[1737049669640,0.27962641,715.24,713.91,0.28014735]
[1737049669843,0.27962641,715.24,713.92,0.46529454]
[1737049670139,0.27962641,715.24,713.93,0.46529454]
[1737049670341,0.27962641,715.24,713.94,0.46529454]
[1737049670544,0.27962641,715.24,713.95,0.46529454]
[1737049670742,0.27962641,715.24,713.96,0.46529454]
[1737049670944,0.27962641,715.24,713.97,0.46529454]
[1737049671143,0.27962641,715.24,713.98,0.46529454]
[1737049671344,0.27962641,715.24,713.99,0.46529454]
[1737049671541,0.27962641,715.24,714.0,0.46529454]
[1737049671747,0.27962641,715.24,714.01,0.46529454]
[1737049671947,0.27962641,715.24,714.02,0.46529454]
[1737049672144,0.27962641,715.24,714.03,0.46529454]
[1737049672349,0.27962641,715.24,714.04,0.46529454]
[1737049672542,0.27962641,715.24,714.05,0.46529454]
[1737049672847,0.27962641,715.24,714.06,0.46529454]
[1737049673050,0.27962641,715.24,714.07,0.46529454]
[1737049673245,0.27962641,715.24,714.08,0.46529454]
[1737049673446,0.27962641,715.24,714.09,0.46529454]
[1737049673647,0.27962641,715.24,714.1,0.46529454]
[1737049673952,0.27962641,715.24,714.11,0.46529454]
[1737049674149,0.27962641,715.24,714.12,0.46529454]
[1737049674447,0.27962641,715.24,714.13,0.46529454]
[1737049674648,0.27962641,715.24,714.14,0.46529454]
[1737049674850,0.27962641,715.24,714.15,0.46529454]
[1737049675047,0.27962641,715.24,714.16,0.46529454]
[1737049675248,0.27962641,715.24,714.17,0.46529454]
[1737049675443,0.27962641,715.24,713.91,0.28014735]
[1737049675444,0.27962641,715.24,714.18,0.46529454]
[1737049675749,0.27962641,715.24,714.19,0.46529454]
[1737049675949,0.27962641,715.24,714.2,0.46529454]
[1737049676152,0.27962641,715.24,714.21,0.46529454]
[1737049676351,0.27962641,715.24,714.22,0.46529454]
[1737049676550,0.27962641,715.24,714.23,0.46529454]
[1737049676747,0.27962641,715.24,714.24,0.46529454]
[1737049676946,0.27962641,715.24,714.25,0.46529454]
[1737049677145,0.27962641,715.24,714.26,0.46529454]
[1737049677346,0.27962641,715.24,713.91,0.28014735]
[1737049677347,0.27962641,715.24,714.27,0.46529454]
[1737049677649,0.27962641,715.24,713.91,0.28014735]
[1737049677852,0.27962641,715.24,713.92,0.46565382]
[1737049678048,0.27962641,715.24,713.93,0.46565382]
[1737049678249,0.27962641,715.24,713.94,0.46565382]
[1737049678549,0.27962641,715.24,713.68,1.03252044]
[1737049678550,0.27962641,715.24,713.95,0.46565382]
[1737049678750,0.27962641,715.24,713.96,0.46565382]
[1737049678951,0.27962641,715.24,713.97,0.46565382]
[1737049679151,0.27962641,715.24,713.98,0.46565382]
[1737049679350,0.27962641,715.24,713.99,0.46565382]
[1737049679551,0.27962641,715.24,714.0,0.46565382]
[1737049679748,0.27962641,715.24,714.01,0.46565382]
[1737049679951,0.27962641,715.24,714.02,0.46565382]
[1737049680146,0.27962641,715.24,714.03,0.46565382]
[1737049680348,0.27962641,715.24,714.04,0.46565382]
[1737049680551,0.27962641,715.24,714.05,0.46565382]
[1737049680748,0.27962641,715.24,714.06,0.46565382]
[1737049680950,0.27962641,715.24,714.07,0.46565382]
[1737049681153,0.27962641,715.24,714.08,0.46565382]
[1737049681352,0.27962641,715.24,714.09,0.46565382]
[1737049681548,0.27962641,715.24,714.1,0.46565382]
[1737049681749,0.27962641,715.24,714.11,0.46565382]
[1737049681953,0.27962641,715.24,714.12,0.46565382]
[1737049682154,0.27962641,715.24,714.13,0.46565382]
[1737049682454,0.27962641,715.24,712.65,1.23902452]
[1737049682455,0.27962641,715.24,714.14,0.46565382]
[1737049682652,0.27962641,715.24,713.38,1.03252044]
[1737049682653,0.27962641,715.24,714.15,0.46565382]
[1737049682853,0.27962641,715.24,714.16,0.46565382]
[1737049683054,0.27962641,715.24,714.17,0.46565382]
[1737049683355,0.27962641,715.24,714.18,0.46565382]
[1737049683559,0.27962641,715.24,714.19,0.46565382]
[1737049683754,0.27962641,715.24,714.2,0.46565382]
[1737049683956,0.27962641,715.24,714.21,0.46565382]
[1737049684257,0.27962641,715.24,714.22,0.46565382]
[1737049684455,0.27962641,715.24,714.23,0.46565382]
[1737049684657,0.27962641,715.24,714.24,0.46565382]
[1737049684956,0.27962641,715.24,714.25,0.46565382]
[1737049685250,0.27962641,715.24,714.26,0.46565382]
[1737049685449,0.27962641,715.24,714.27,0.46565382]
[1737049685652,0.27962641,715.24,713.58,1.03252044]
[1737049685653,0.27962641,715.24,714.28,0.46565382]
[1737049685856,0.27962641,715.24,714.29,0.46565382]
[1737049686054,0.27962641,715.24,714.3,0.46565382]
[1737049686254,0.27962641,715.24,713.12,1.23902452]
[1737049686255,0.27962641,715.24,714.31,0.46572844]
[1737049686455,0.27962641,715.24,714.32,0.46572844]
[1737049686655,0.27962641,715.24,714.33,0.46572844]
[1737049686852,0.27962641,715.24,714.34,0.46572844]
[1737049687052,0.27962641,715.24,714.35,0.46572844]
[1737049687256,0.27962641,715.24,714.36,0.46572844]
[1737049687456,0.27962641,715.24,714.37,0.46572844]
[1737049687657,0.27962641,715.24,713.54,1.03252044]
[1737049687956,0.27962641,715.24,713.55,1.00328614]
[1737049688152,0.27962641,715.24,713.56,1.00328221]
[1737049688353,0.27962641,715.24,713.57,0.72299745]
[1737049688551,0.27962641,715.24,713.58,0.72299745]
[1737049688751,0.27962641,715.24,713.59,1.00327043]
[1737049688954,0.27962641,715.24,713.6,1.0032665]
[1737049689154,0.27962641,715.24,713.61,0.72299745]
[1737049689352,0.27962641,715.24,713.6,0.28026905]
[1737049689353,0.27962641,715.24,713.62,0.72299745]
[1737049689557,0.27962641,715.24,713.63,1.00325444]
[1737049689758,0.27962641,715.24,713.64,1.00324319]
[1737049689956,0.27962641,715.24,713.65,0.72298985]
[1737049690152,0.27962641,715.24,713.66,1.00323534]
[1737049690357,0.27962641,715.24,713.67,0.72298985]
[1737049690560,0.27962641,715.24,713.68,1.00323639]
[1737049690751,0.27962641,715.24,713.69,0.72299875]
[1737049690954,0.27962641,715.24,713.7,0.72299875]
[1737049691257,0.27962641,715.24,713.71,0.72299875]
[1737049691459,0.27962641,715.24,713.72,0.72299875]
[1737049691658,0.27962641,715.24,713.73,0.72299875]
[1737049691858,0.27962641,715.24,713.68,0.28023764]
[1737049691859,0.27962641,715.24,713.74,0.72299875]
[1737049692059,0.27962641,715.24,713.75,0.72299875]
[1737049692255,1.04175987,715.17,713.76,0.72299875]
[1737049692465,1.04175987,715.17,713.77,0.72299875]
[1737049692653,1.04175987,715.17,713.78,0.72299875]
[1737049692856,0.27965769,715.16,713.79,0.72299875]
[1737049693055,0.27965769,715.16,713.8,0.72299875]
[1737049693255,0.27965769,715.16,713.81,0.72299875]
[1737049693465,1.04175987,715.06,713.82,0.72299875]
[1737049693655,1.04175987,715.06,713.83,0.72299875]
[1737049693960,1.04175987,715.06,713.84,0.72299875]
[1737049694159,1.04175987,715.06,713.85,0.72299875]
[1737049694361,1.04175987,714.98,713.86,0.72299875]
[1737049694555,1.04175987,714.98,713.87,0.46576088]
[1737049694755,1.04175987,714.98,713.88,0.46576088]
[1737049694962,1.04175987,714.98,713.89,0.46576088]
[1737049695162,1.04175987,714.98,713.9,0.46576088]
[1737049695357,1.04175987,714.98,713.91,0.46647052]
[1737049695556,1.04175987,714.98,713.68,0.28023764]
[1737049695557,1.04175987,714.98,713.92,0.46647052]
[1737049695761,1.04175987,714.98,713.93,0.46647052]
[1737049695961,1.04175987,714.98,713.68,0.28023764]
[1737049695962,1.04175987,714.98,713.94,0.46647052]
[1737049696266,1.04175987,714.98,713.95,0.46647052]
[1737049696459,1.04175987,714.98,713.96,0.46647052]
[1737049696765,1.04175987,714.98,713.97,0.46647052]
[1737049696961,1.04175987,714.98,713.98,0.46647052]
[1737049697157,1.04175987,714.98,713.99,0.46647052]
[1737049697365,0.27965769,715.16,714.0,0.46647052]
[1737049697366,1.04175987,714.86,714.0,0.46647052]
[1737049697567,1.04175987,714.86,714.01,0.46647052]
[1737049697764,1.04175987,714.86,714.02,0.46647052]
[1737049697965,1.04175987,714.86,714.03,0.46647052]
[1737049698169,1.04175987,714.86,714.04,0.46637949]
[1737049698465,0.70908549,715.15,713.25,1.03252044]
[1737049698466,1.04175987,714.79,713.44,1.03252044]
[1737049698661,1.04175987,714.79,713.45,0.72359618]
[1737049698866,1.04175987,714.79,713.46,0.72359618]
[1737049699066,1.04175987,714.79,713.47,0.72359618]
[1737049699270,1.04175987,714.79,713.48,0.72359618]
[1737049699469,1.04175987,714.79,713.49,0.72359618]
[1737049699666,1.04175987,714.79,713.5,0.72359618]
[1737049699866,1.04175987,714.79,713.01,1.23902452]
[1737049699867,1.04175987,714.81,713.51,0.72359618]
[1737049700168,1.04175987,714.81,713.52,0.72359618]
[1737049700469,1.04175987,714.81,713.53,0.72359618]